Workbook

Sheet PROJECT INFO
A1: PROJECT INFORMATION
A3: PROJECT/PID:
A4: INTERSECTION NAME:
A5: REV. DATE:

Sheet MAST ARM HEIGHT
A1: SUPPORT NO. | B1: ARM | C1: MIN CLEARANCE FROM PAVEMENT TO BOTTOM OF SIGNAL HEAD | D1: MAX CLEARANCE FROM PAVEMENT TO BOTTOM OF SIGNAL HEAD | E1: FOUNDATION ELEVATION AT GROUND LEVEL | F1: DISTANCE FROM GROUND TO FOUNDATION | G1: ELEVATION B TOP OF FOUNDATION | H1: RISE ANGLE WITH HORIZONTAL ARM TIP | I1: SIGNAL HEADS CENTERED ON WHICH COLOR? | J1: SIGNAL NO. | K1: SIGNAL HEAD TYPE (12 IN. SECTIONS WITH BACKPLATES) | L1: DISTANCE FROM BOTTOM OF SIGNAL HEAD TO CENTER OF MAST ARM (TEM 497-6) | M1: SIGNAL HEAD DISTANCE FROM SUPPORT POLE | N1: ELEVATION A PAVEMENT ELEVATION UNDER SIGNAL HEAD OR SIGN | O1: MINIMUM HEIGHT (FOUNDATION TO MAST ARM) | P1: MAXIMUM HEIGHT (FOUNDATION TO MAST ARM) | Q1: MINIMUM ALLOWABLE HEIGHT (FOUNDATION TO MAST ARM) | R1: MAXIMUM ALLOWABLE HEIGHT (FOUNDATION TO MAST ARM) | S1: FINAL ATTACHMENT ARM HEIGHT (FOUNDATION TO MAST ARM) | T1: DOES MAST ARM HAVE POLE EXTENSION? | U1: HEIGHT FROM MAST ARM TO TOP OF POLE | V1: SUGGESTED POLE HEIGHT | W1: POLE HEIGHT WITH EXTENSION
C2: FT | D2: FT | E2: FT | F2: IN | G2: FT | H2: DEGREE | L2: FT | M2: FT | N2: FT | O2: FT | P2: FT | Q2: FT | R2: FT | S2: FT | U2: FT | V2: FT | W2: FT | AB2: -
A3: SP-1 | B3: A | C3: 17 | D3: 19 | E3: 652.32 | F3: 2 | G3: =IF(E3="-","-",$E3+($F3/12)) -> 652.4866667 | H3: 0.5 | I3: YELLOW | J3: 1A | K3: 3 SECTIONS | L3: =IF($I$3="-","-",VLOOKUP(K3,$AD$5:$AF$12,MATCH($I$3,$AE$4:$AF$4)+1)) -> 2.3 | M3: 63.5 | N3: 651.07 | O3: =IF(M3="-","-",($C$3+$L3+$N3-(SIN(RADIANS($H$3))*$M3))-$G$3) -> 17.32919833 | P3: =IF(M3="-","-",($D$3+$L3+$N3-(SIN(RADIANS($H$3))*$M3))-$G$3) -> 19.32919833 | Q3: =IF(O3="-","-",(MAX(O3:O7))) -> 18.44134955 | R3: =IF(P3="-","-",MIN(P3:P7)) -> 19.32919833 | S3: 19 | T3: YES | U3: =IF($T3="YES",3.5,IF($T3="NO",1.5,"-")) -> 3.5 | V3: =IF(T3="-","-",$S3+$U3) -> 22.5 | W3: =IF($T3="YES",V3+10,IF($T3="NO","N/A","-")) -> 32.5 | AA3: - | AB3: SP-1
J4: 1B | K4: 3 SECTIONS | L4: =IF($I$3="-","-",VLOOKUP(K4,$AD$5:$AF$12,MATCH($I$3,$AE$4:$AF$4)+1)) -> 2.3 | M4: 52.5 | N4: 651.29 | O4: =IF(M4="-","-",($C$3+$L4+$N4-(SIN(RADIANS($H$3))*$M4))-$G$3) -> 17.64519022 | P4: =IF(M4="-","-",($D$3+$L4+$N4-(SIN(RADIANS($H$3))*$M4))-$G$3) -> 19.64519022 | AA4: YELLOW | AB4: SP-2 | AE4: RED | AF4: YELLOW
J5: 6A | K5: 3 SECTIONS | L5: =IF($I$3="-","-",VLOOKUP(K5,$AD$5:$AF$12,MATCH($I$3,$AE$4:$AF$4)+1)) -> 2.3 | M5: 38.5 | N5: 651.38 | O5: =IF(M5="-","-",($C$3+$L5+$N5-(SIN(RADIANS($H$3))*$M5))-$G$3) -> 17.85736172 | P5: =IF(M5="-","-",($D$3+$L5+$N5-(SIN(RADIANS($H$3))*$M5))-$G$3) -> 19.85736172 | AA5: RED | AB5: SP-3 | AD5: - | AE5: - | AF5: -
J6: 6B | K6: 5 SECTIONS - CLUSTER | L6: =IF($I$3="-","-",VLOOKUP(K6,$AD$5:$AF$12,MATCH($I$3,$AE$4:$AF$4)+1)) -> 2.6 | M6: 22 | N6: 651.52 | O6: =IF(M6="-","-",($C$3+$L6+$N6-(SIN(RADIANS($H$3))*$M6))-$G$3) -> 18.44134955 | P6: =IF(M6="-","-",($D$3+$L6+$N6-(SIN(RADIANS($H$3))*$M6))-$G$3) -> 20.44134955 | AB6: SP-4 | AD6: 1 SECTION | AE6: 0 | AF6: 0
J7: - | K7: - | L7: =IF($I$3="-","-",VLOOKUP(K7,$AD$5:$AF$12,MATCH($I$3,$AE$4:$AF$4)+1)) -> - | M7: - | N7: - | O7: =IF(M7="-","-",($C$3+$L7+$N7-(SIN(RADIANS($H$3))*$M7))-$G$3) -> - | P7: =IF(M7="-","-",($D$3+$L7+$N7-(SIN(RADIANS($H$3))*$M7))-$G$3) -> - | AA7: - | AB7: SP-5 | AD7: 2 SECTIONS | AE7: 2.625 | AF7: 1.625
A8: SP-2 | B8: A | C8: 17 | D8: 19 | E8: 649.41 | F8: 2 | G8: =IF(E8="-","-",$E8+($F8/12)) -> 649.5766667 | H8: 0.5 | I8: YELLOW | J8: 7A | K8: 3 SECTIONS | L8: =IF($I$8="-","-",VLOOKUP(K8,$AD$5:$AF$12,MATCH($I$8,$AE$4:$AF$4)+1)) -> 2.3 | M8: 68 | N8: 649.99 | O8: =IF(M8="-","-",($C$8+$L8+$N8-(SIN(RADIANS($H$8))*$M8))-$G$8) -> 19.11992892 | P8: =IF(M8="-","-",($D$8+$L8+$N8-(SIN(RADIANS($H$8))*$M8))-$G$8) -> 21.11992892 | Q8: =IF(O8="-","-",(MAX(O8:O12))) -> 19.11992892 | R8: =IF(P8="-","-",MIN(P8:P12)) -> 20.9219127 | S8: 20 | T8: YES | U8: =IF($T8="YES",3.5,IF($T8="NO",1.5,"-")) -> 3.5 | V8: =IF(T8="-","-",$S8+$U8) -> 23.5 | W8: =IF($T8="YES",V8+10,IF($T8="NO","N/A","-")) -> 33.5 | AA8: YES | AB8: SP-6 | AD8: 3 SECTIONS | AE8: 3.4 | AF8: 2.3
J9: 4A | K9: 3 SECTIONS | L9: =IF($I$8="-","-",VLOOKUP(K9,$AD$5:$AF$12,MATCH($I$8,$AE$4:$AF$4)+1)) -> 2.3 | M9: 57 | N9: 649.88 | O9: =IF(M9="-","-",($C$8+$L9+$N9-(SIN(RADIANS($H$8))*$M9))-$G$8) -> 19.10592081 | P9: =IF(M9="-","-",($D$8+$L9+$N9-(SIN(RADIANS($H$8))*$M9))-$G$8) -> 21.10592081 | AA9: NO | AB9: SP-7 | AD9: 4 SECTIONS | AE9: 4.6 | AF9: 3.4
J10: 4B | K10: 3 SECTIONS | L10: =IF($I$8="-","-",VLOOKUP(K10,$AD$5:$AF$12,MATCH($I$8,$AE$4:$AF$4)+1)) -> 2.3 | M10: 46 | N10: 649.6 | O10: =IF(M10="-","-",($C$8+$L10+$N10-(SIN(RADIANS($H$8))*$M10))-$G$8) -> 18.9219127 | P10: =IF(M10="-","-",($D$8+$L10+$N10-(SIN(RADIANS($H$8))*$M10))-$G$8) -> 20.9219127 | AB10: SP-8 | AD10: 5 SECTIONS - CLUSTER | AE10: 3.7 | AF10: 2.6
J11: - | K11: - | L11: =IF($I$8="-","-",VLOOKUP(K11,$AD$5:$AF$12,MATCH($I$8,$AE$4:$AF$4)+1)) -> - | M11: - | N11: - | O11: =IF(M11="-","-",($C$8+$L11+$N11-(SIN(RADIANS($H$8))*$M11))-$G$8) -> - | P11: =IF(M11="-","-",($D$8+$L11+$N11-(SIN(RADIANS($H$8))*$M11))-$G$8) -> - | AA11: - | AB11: SP-9 | AD11: 5 SECTIONS - MIXED | AE11: 3.7 | AF11: 2.6
J12: - | K12: - | L12: =IF($I$8="-","-",VLOOKUP(K12,$AD$5:$AF$12,MATCH($I$8,$AE$4:$AF$4)+1)) -> - | M12: - | N12: - | O12: =IF(M12="-","-",($C$8+$L12+$N12-(SIN(RADIANS($H$8))*$M12))-$G$8) -> - | P12: =IF(M12="-","-",($D$8+$L12+$N12-(SIN(RADIANS($H$8))*$M12))-$G$8) -> - | AA12: 0 | AB12: SP-10 | AD12: 5 SECTIONS - VERTICAL | AE12: 5.8 | AF12: 4.6
A13: SP-3 | B13: A | C13: 17 | D13: 19 | E13: 651.91 | F13: 2 | G13: =IF(E13="-","-",$E13+($F13/12)) -> 652.0766667 | H13: 0.5 | I13: YELLOW | J13: 3A | K13: 3 SECTIONS | L13: =IF($I$13="-","-",VLOOKUP(K13,$AD$5:$AF$12,MATCH($I$13,$AE$4:$AF$4)+1)) -> 2.3 | M13: 41.5 | N13: 652.51 | O13: =IF(M13="-","-",($C$13+$L13+$N13-(SIN(RADIANS($H$13))*$M13))-$G$13) -> 19.37118211 | P13: =IF(M13="-","-",($D$13+$L13+$N13-(SIN(RADIANS($H$13))*$M13))-$G$13) -> 21.37118211 | Q13: =IF(O13="-","-",(MAX(O13:O17))) -> 19.37118211 | R13: =IF(P13="-","-",MIN(P13:P17)) -> 21.21099439 | S13: 20 | T13: YES | U13: =IF($T13="YES",3.5,IF($T13="NO",1.5,"-")) -> 3.5 | V13: =IF(T13="-","-",$S13+$U13) -> 23.5 | W13: =IF($T13="YES",V13+10,IF($T13="NO","N/A","-")) -> 33.5 | AA13: 0.5 | AB13: SP-11
J14: 8A | K14: 3 SECTIONS | L14: =IF($I$13="-","-",VLOOKUP(K14,$AD$5:$AF$12,MATCH($I$13,$AE$4:$AF$4)+1)) -> 2.3 | M14: 33.5 | N14: 652.28 | O14: =IF(M14="-","-",($C$13+$L14+$N14-(SIN(RADIANS($H$13))*$M14))-$G$13) -> 19.21099439 | P14: =IF(M14="-","-",($D$13+$L14+$N14-(SIN(RADIANS($H$13))*$M14))-$G$13) -> 21.21099439 | AA14: 1 | AB14: SP-12
J15: 8B | K15: 5 SECTIONS - CLUSTER | L15: =IF($I$13="-","-",VLOOKUP(K15,$AD$5:$AF$12,MATCH($I$13,$AE$4:$AF$4)+1)) -> 2.6 | M15: 24 | N15: 651.9 | O15: =IF(M15="-","-",($C$13+$L15+$N15-(SIN(RADIANS($H$13))*$M15))-$G$13) -> 19.21389648 | P15: =IF(M15="-","-",($D$13+$L15+$N15-(SIN(RADIANS($H$13))*$M15))-$G$13) -> 21.21389648 | AA15: 1.5 | AB15: SP-13
J16: - | K16: - | L16: =IF($I$13="-","-",VLOOKUP(K16,$AD$5:$AF$12,MATCH($I$13,$AE$4:$AF$4)+1)) -> - | M16: - | N16: - | O16: =IF(M16="-","-",($C$13+$L16+$N16-(SIN(RADIANS($H$13))*$M16))-$G$13) -> - | P16: =IF(M16="-","-",($D$13+$L16+$N16-(SIN(RADIANS($H$13))*$M16))-$G$13) -> - | AA16: 2 | AB16: SP-14
J17: - | K17: - | L17: =IF($I$13="-","-",VLOOKUP(K17,$AD$5:$AF$12,MATCH($I$13,$AE$4:$AF$4)+1)) -> - | M17: - | N17: - | O17: =IF(M17="-","-",($C$13+$L17+$N17-(SIN(RADIANS($H$13))*$M17))-$G$13) -> - | P17: =IF(M17="-","-",($D$13+$L17+$N17-(SIN(RADIANS($H$13))*$M17))-$G$13) -> - | AA17: 2.5 | AB17: SP-15
A18: SP-4 | B18: A | C18: 17 | D18: 19 | E18: 650.35 | F18: 2 | G18: =IF(E18="-","-",$E18+($F18/12)) -> 650.5166667 | H18: 0.5 | I18: YELLOW | J18: 5A | K18: 3 SECTIONS | L18: =IF($I$18="-","-",VLOOKUP(K18,$AD$5:$AF$12,MATCH($I$18,$AE$4:$AF$4)+1)) -> 2.3 | M18: 68.5 | N18: 651.57 | O18: =IF(M18="-","-",($C$18+$L18+$N18-(SIN(RADIANS($H$18))*$M18))-$G$18) -> 19.75556565 | P18: =IF(M18="-","-",($D$18+$L18+$N18-(SIN(RADIANS($H$18))*$M18))-$G$18) -> 21.75556565 | Q18: =IF(O18="-","-",(MAX(O18:O22))) -> 19.75556565 | R18: =IF(P18="-","-",MIN(P18:P22)) -> 21.00080668 | S18: 20 | T18: YES | U18: =IF($T18="YES",3.5,IF($T18="NO",1.5,"-")) -> 3.5 | V18: =IF(T18="-","-",$S18+$U18) -> 23.5 | W18: =IF($T18="YES",V18+10,IF($T18="NO","N/A","-")) -> 33.5 | AA18: 3 | AB18: -
J19: 2A | K19: 3 SECTIONS | L19: =IF($I$18="-","-",VLOOKUP(K19,$AD$5:$AF$12,MATCH($I$18,$AE$4:$AF$4)+1)) -> 2.3 | M19: 47.5 | N19: 651.02 | O19: =IF(M19="-","-",($C$18+$L19+$N19-(SIN(RADIANS($H$18))*$M19))-$G$18) -> 19.3888229 | P19: =IF(M19="-","-",($D$18+$L19+$N19-(SIN(RADIANS($H$18))*$M19))-$G$18) -> 21.3888229 | AB19: A
J20: 2B | K20: 3 SECTIONS | L20: =IF($I$18="-","-",VLOOKUP(K20,$AD$5:$AF$12,MATCH($I$18,$AE$4:$AF$4)+1)) -> 2.3 | M20: 35.5 | N20: 650.71 | O20: =IF(M20="-","-",($C$18+$L20+$N20-(SIN(RADIANS($H$18))*$M20))-$G$18) -> 19.18354132 | P20: =IF(M20="-","-",($D$18+$L20+$N20-(SIN(RADIANS($H$18))*$M20))-$G$18) -> 21.18354132 | AB20: B
J21: 2C | K21: 3 SECTIONS | L21: =IF($I$18="-","-",VLOOKUP(K21,$AD$5:$AF$12,MATCH($I$18,$AE$4:$AF$4)+1)) -> 2.3 | M21: 25.5 | N21: 650.44 | O21: =IF(M21="-","-",($C$18+$L21+$N21-(SIN(RADIANS($H$18))*$M21))-$G$18) -> 19.00080668 | P21: =IF(M21="-","-",($D$18+$L21+$N21-(SIN(RADIANS($H$18))*$M21))-$G$18) -> 21.00080668 | AB21: C
J22: - | K22: - | L22: =IF($I$18="-","-",VLOOKUP(K22,$AD$5:$AF$12,MATCH($I$18,$AE$4:$AF$4)+1)) -> - | M22: - | N22: - | O22: =IF(M22="-","-",($C$18+$L22+$N22-(SIN(RADIANS($H$18))*$M22))-$G$18) -> - | P22: =IF(M22="-","-",($D$18+$L22+$N22-(SIN(RADIANS($H$18))*$M22))-$G$18) -> - | AB22: D

Sheet MAST ARM DESIGN NO.
A1: SUPPORT NO. | B1: ARM | C1: NUMBER OF LUMINAIRES OR BRACKET ARMS | D1: LUMINAIRE/ BRACKET ARM LENGTH | E1: SIGNAL OR SIGN? | F1: SIGNAL/ SIGN NO. | G1: ATTACHMENT DISTANCE FROM SUPPORT POLE | I1: SIGNAL HEAD TYPE (12 IN. LENS) | J1: SIGN SIZE | L1: AREA | M1: ATTACHMENT LENGTH * AREA | N1: L | O1: DAMPER REQUIRED? | P1: K | Q1: DESIGN NO.
N2: TOTAL MAST ARM LENGTH | P2: AREA MOMENT DESIGN FACTOR
D3: FT | G3: NO. | H3: FT | J3: IN | L3: SQ. FT. | N3: FT
A4: ='MAST ARM HEIGHT'!A3 -> SP-1 | B4: ='MAST ARM HEIGHT'!B3 -> A | C4: 1 | D4: 25 | E4: SIGNAL | F4: =IF($E4="SIGNAL",INDEX('MAST ARM HEIGHT'!J3:J7,COUNTIF($E4,"SIGNAL")),"-") -> 1A | G4: L1 | H4: =IF(E4="SIGNAL",INDEX('MAST ARM HEIGHT'!M3:M7,COUNTIF(E4,"SIGNAL")),"-") -> 63.5 | I4: =IF(E4="SIGNAL",INDEX('MAST ARM HEIGHT'!K3:K7,COUNTIF(E4,"SIGNAL")),"-") -> 3 SECTIONS | J4: - | K4: - | L4: =IF(E4="SIGNAL",VLOOKUP(I4,$T$5:$U$12,2),IF(E4="SIGN",(J4*K4)/144,"-")) -> 8.7 | M4: =IF(E4="-","-",H4*L4) -> 552.45 | N4: 66 | O4: =IF(N4="-","-",IF(N4>39,"YES","NO")) -> YES | P4: =IF($C4=2,(D4+D8)*3+(SUMIF($M4:$M11,"<>-")),IF($C4=1,$D4*3+(SUMIF($M4:$M11,"<>-")),IF($C4=0,SUMIF($M4:$M11,"<>-"),"-"))) -> 2350.075 | Q4: =IF($P4="-","-",IF($P4<=$Z$23,VLOOKUP($Z$23,$AA$4:$AB$11,2),$AA$23)) -> 14 | S4: - | U4: 12 | AA4: 637 | AB4: 1 | AD4: K | AE4: DESIGN NO. | AF4: MAX ARM LENGTH (FT)
E5: SIGNAL | F5: =IF($E5="SIGNAL",INDEX('MAST ARM HEIGHT'!J3:J7,COUNTIF($E4:$E5,"SIGNAL")),"-") -> 1B | G5: L2 | H5: =IF($E5="SIGNAL",INDEX('MAST ARM HEIGHT'!M3:M7,COUNTIF($E4:$E5,"SIGNAL")),"-") -> 52.5 | I5: =IF($E5="SIGNAL",INDEX('MAST ARM HEIGHT'!K3:K7,COUNTIF($E4:$E5,"SIGNAL")),"-") -> 3 SECTIONS | J5: - | K5: - | L5: 8.7 | M5: 456.75 | S5: 8 | T5: - | U5: - | AA5: 787.5 | AB5: 2 | AD5: 2641 | AE5: 14 | AF5: 70
E6: SIGNAL | F6: =IF($E6="SIGNAL",INDEX('MAST ARM HEIGHT'!J3:J7,COUNTIF($E4:$E6,"SIGNAL")),"-") -> 6A | G6: L3 | H6: =IF($E6="SIGNAL",INDEX('MAST ARM HEIGHT'!M3:M7,COUNTIF($E4:$E6,"SIGNAL")),"-") -> 38.5 | I6: =IF($E6="SIGNAL",INDEX('MAST ARM HEIGHT'!K3:K7,COUNTIF($E4:$E6,"SIGNAL")),"-") -> 3 SECTIONS | J6: - | K6: - | L6: 8.7 | M6: 334.95 | S6: 12 | T6: 1 SECTION | U6: 4 | AA6: 937.5 | AB6: 3 | AD6: 2380 | AE6: 13 | AF6: 60
E7: SIGNAL | F7: =IF($E7="SIGNAL",INDEX('MAST ARM HEIGHT'!J3:J7,COUNTIF($E4:$E7,"SIGNAL")),"-") -> 6B | G7: L4 | H7: =IF($E7="SIGNAL",INDEX('MAST ARM HEIGHT'!M3:M7,COUNTIF($E4:$E7,"SIGNAL")),"-") -> 22 | I7: =IF($E7="SIGNAL",INDEX('MAST ARM HEIGHT'!K3:K7,COUNTIF($E4:$E7,"SIGNAL")),"-") -> 5 SECTIONS - CLUSTER | J7: - | K7: - | L7: 12.4 | M7: 272.8 | T7: 2 SECTIONS | U7: 6.5 | AA7: 1575 | AB7: 4 | AD7: 1995 | AE7: 12 | AF7: 48
D8: - | E8: SIGN | F8: S3 | G8: L5 | H8: 58.5 | I8: =IF($E8="SIGNAL",INDEX('MAST ARM HEIGHT'!K3:K7,COUNTIF($E4:$E8,"SIGNAL")),"-") -> - | J8: 54 | K8: 30 | L8: 11.25 | M8: 658.125 | T8: 3 SECTIONS | U8: 8.7 | AA8: 1780 | AB8: 11 | AD8: 1780 | AE8: 11 | AF8: 45
E9: - | F9: =IF($E9="SIGNAL",INDEX('MAST ARM HEIGHT'!J3:J7,COUNTIF($E4:$E9,"SIGNAL")),"-") -> - | G9: L6 | H9: =IF($E9="SIGNAL",INDEX('MAST ARM HEIGHT'!M3:M7,COUNTIF($E4:$E9,"SIGNAL")),"-") -> - | I9: =IF($E9="SIGNAL",INDEX('MAST ARM HEIGHT'!K3:K7,COUNTIF($E4:$E9,"SIGNAL")),"-") -> - | J9: - | K9: - | L9: - | M9: - | T9: 4 SECTIONS | U9: 11 | AA9: 1995 | AB9: 12 | AD9: 1575 | AE9: 4 | AF9: 38
E10: - | F10: =IF($E10="SIGNAL",INDEX('MAST ARM HEIGHT'!J3:J7,COUNTIF($E4:$E10,"SIGNAL")),"-") -> - | G10: L7 | H10: =IF($E10="SIGNAL",INDEX('MAST ARM HEIGHT'!M3:M7,COUNTIF($E4:$E10,"SIGNAL")),"-") -> - | I10: =IF($E10="SIGNAL",INDEX('MAST ARM HEIGHT'!K3:K7,COUNTIF($E4:$E10,"SIGNAL")),"-") -> - | J10: - | K10: - | L10: - | M10: - | T10: 5 SECTIONS - CLUSTER | U10: 12.4 | AA10: 2380 | AB10: 13 | AD10: 937.5 | AE10: 3 | AF10: 38
E11: - | F11: =IF($E11="SIGNAL",INDEX('MAST ARM HEIGHT'!J3:J7,COUNTIF($E4:$E11,"SIGNAL")),"-") -> - | G11: L8 | H11: =IF($E11="SIGNAL",INDEX('MAST ARM HEIGHT'!M3:M7,COUNTIF($E4:$E11,"SIGNAL")),"-") -> - | I11: =IF($E11="SIGNAL",INDEX('MAST ARM HEIGHT'!K3:K7,COUNTIF($E4:$E11,"SIGNAL")),"-") -> - | J11: - | K11: - | L11: - | M11: - | T11: 5 SECTIONS - MIXED | U11: 11.4 | AA11: 2641 | AB11: 14 | AD11: 787.5 | AE11: 2 | AF11: 32
A12: ='MAST ARM HEIGHT'!A8 -> SP-2 | B12: ='MAST ARM HEIGHT'!B8 -> A | C12: 1 | D12: 25 | E12: SIGNAL | F12: =IF($E12="SIGNAL",INDEX('MAST ARM HEIGHT'!J8:J12,COUNTIF($E12,"SIGNAL")),"-") -> 7A | G12: L1 | H12: =IF($E12="SIGNAL",INDEX('MAST ARM HEIGHT'!M8:M12,COUNTIF($E12,"SIGNAL")),"-") -> 68 | I12: =IF($E12="SIGNAL",INDEX('MAST ARM HEIGHT'!K8:K12,COUNTIF($E12,"SIGNAL")),"-") -> 3 SECTIONS | J12: - | K12: - | L12: 8.7 | M12: 591.6 | N12: 70 | O12: =IF(N12="-","-",IF(N12>39,"YES","NO")) -> YES | P12: =IF($C12=2,(D12+D16)*3+(SUMIF($M12:$M19,"<>-")),IF($C12=1,$D12*3+(SUMIF($M12:$M19,"<>-")),IF($C12=0,SUMIF($M12:$M19,"<>-"),"-"))) -> 1726.7 | Q12: =IF($P12="-","-",IF($P12<=$Z$24,VLOOKUP($Z$24,$AA$4:$AB$11,2),$AA$24)) -> 14 | S12: - | T12: 5 SECTIONS - VERTICAL | U12: 13.3 | AD12: 637 | AE12: 1 | AF12: 25
E13: SIGNAL | F13: =IF($E13="SIGNAL",INDEX('MAST ARM HEIGHT'!J8:J12,COUNTIF($E12:$E13,"SIGNAL")),"-") -> 4A | G13: L2 | H13: =IF($E13="SIGNAL",INDEX('MAST ARM HEIGHT'!M8:M12,COUNTIF($E12:$E13,"SIGNAL")),"-") -> 57 | I13: =IF($E13="SIGNAL",INDEX('MAST ARM HEIGHT'!K8:K12,COUNTIF($E12:$E13,"SIGNAL")),"-") -> 3 SECTIONS | J13: - | K13: - | L13: 8.7 | M13: 495.9 | S13: SIGNAL
E14: SIGNAL | F14: =IF($E14="SIGNAL",INDEX('MAST ARM HEIGHT'!J8:J12,COUNTIF($E12:$E14,"SIGNAL")),"-") -> 4B | G14: L3 | H14: =IF($E14="SIGNAL",INDEX('MAST ARM HEIGHT'!M8:M12,COUNTIF($E12:$E14,"SIGNAL")),"-") -> 46 | I14: =IF($E14="SIGNAL",INDEX('MAST ARM HEIGHT'!K8:K12,COUNTIF($E12:$E14,"SIGNAL")),"-") -> 3 SECTIONS | J14: - | K14: - | L14: 8.7 | M14: 400.2 | S14: SIGN
E15: SIGN | F15: S1 | G15: L4 | H15: 41 | I15: =IF($E15="SIGNAL",INDEX('MAST ARM HEIGHT'!K8:K12,COUNTIF($E12:$E15,"SIGNAL")),"-") -> - | J15: 24 | K15: 24 | L15: 4 | M15: 164
D16: - | E16: - | F16: =IF($E16="SIGNAL",INDEX('MAST ARM HEIGHT'!J8:J12,COUNTIF($E12:$E16,"SIGNAL")),"-") -> - | G16: L5 | H16: =IF($E16="SIGNAL",INDEX('MAST ARM HEIGHT'!M8:M12,COUNTIF($E12:$E16,"SIGNAL")),"-") -> - | I16: =IF($E16="SIGNAL",INDEX('MAST ARM HEIGHT'!K8:K12,COUNTIF($E12:$E16,"SIGNAL")),"-") -> - | J16: - | K16: - | L16: - | M16: - | S16: -
E17: - | F17: =IF($E17="SIGNAL",INDEX('MAST ARM HEIGHT'!J8:J12,COUNTIF($E12:$E17,"SIGNAL")),"-") -> - | G17: L6 | H17: =IF($E17="SIGNAL",INDEX('MAST ARM HEIGHT'!M8:M12,COUNTIF($E12:$E17,"SIGNAL")),"-") -> - | I17: =IF($E17="SIGNAL",INDEX('MAST ARM HEIGHT'!K8:K12,COUNTIF($E12:$E17,"SIGNAL")),"-") -> - | J17: - | K17: - | L17: - | M17: - | S17: 0
E18: - | F18: =IF($E18="SIGNAL",INDEX('MAST ARM HEIGHT'!J8:J12,COUNTIF($E12:$E18,"SIGNAL")),"-") -> - | G18: L7 | H18: =IF($E18="SIGNAL",INDEX('MAST ARM HEIGHT'!M8:M12,COUNTIF($E12:$E18,"SIGNAL")),"-") -> - | I18: =IF($E18="SIGNAL",INDEX('MAST ARM HEIGHT'!K8:K12,COUNTIF($E12:$E18,"SIGNAL")),"-") -> - | J18: - | K18: - | L18: - | M18: - | S18: 1
E19: - | F19: =IF($E19="SIGNAL",INDEX('MAST ARM HEIGHT'!J8:J12,COUNTIF($E12:$E19,"SIGNAL")),"-") -> - | G19: L8 | H19: =IF($E19="SIGNAL",INDEX('MAST ARM HEIGHT'!M8:M12,COUNTIF($E12:$E19,"SIGNAL")),"-") -> - | I19: =IF($E19="SIGNAL",INDEX('MAST ARM HEIGHT'!K8:K12,COUNTIF($E12:$E19,"SIGNAL")),"-") -> - | J19: - | K19: - | L19: - | M19: - | S19: 2
A20: ='MAST ARM HEIGHT'!A13 -> SP-3 | B20: ='MAST ARM HEIGHT'!B13 -> A | C20: 1 | D20: 25 | E20: SIGNAL | F20: =IF($E20="SIGNAL",INDEX('MAST ARM HEIGHT'!J13:J17,COUNTIF($E20,"SIGNAL")),"-") -> 3A | G20: L1 | H20: =IF($E20="SIGNAL",INDEX('MAST ARM HEIGHT'!M13:M17,COUNTIF($E20,"SIGNAL")),"-") -> 41.5 | I20: =IF($E20="SIGNAL",INDEX('MAST ARM HEIGHT'!K13:K17,COUNTIF($E20,"SIGNAL")),"-") -> 3 SECTIONS | J20: - | K20: - | L20: 8.7 | M20: 361.05 | N20: 44 | O20: =IF(N20="-","-",IF(N20>39,"YES","NO")) -> YES | P20: =IF($C20=2,(D20+D24)*3+(SUMIF($M20:$M27,"<>-")),IF($C20=1,$D20*3+(SUMIF($M20:$M27,"<>-")),IF($C20=0,SUMIF($M20:$M27,"<>-"),"-"))) -> 1099.1 | Q20: =IF($P20="-","-",IF($P20<=$Z$25,VLOOKUP($Z$25,$AA$4:$AB$11,2),$AA$25)) -> 11
E21: SIGNAL | F21: =IF($E21="SIGNAL",INDEX('MAST ARM HEIGHT'!J13:J17,COUNTIF($E20:$E21,"SIGNAL")),"-") -> 8A | G21: L2 | H21: =IF($E21="SIGNAL",INDEX('MAST ARM HEIGHT'!M13:M17,COUNTIF($E20:$E21,"SIGNAL")),"-") -> 33.5 | I21: =IF($E21="SIGNAL",INDEX('MAST ARM HEIGHT'!K13:K17,COUNTIF($E20:$E21,"SIGNAL")),"-") -> 3 SECTIONS | J21: - | K21: - | L21: 8.7 | M21: 291.45
E22: SIGNAL | F22: =IF($E22="SIGNAL",INDEX('MAST ARM HEIGHT'!J13:J17,COUNTIF($E20:$E22,"SIGNAL")),"-") -> 8B | G22: L3 | H22: =IF($E22="SIGNAL",INDEX('MAST ARM HEIGHT'!M13:M17,COUNTIF($E20:$E22,"SIGNAL")),"-") -> 24 | I22: =IF($E22="SIGNAL",INDEX('MAST ARM HEIGHT'!K13:K17,COUNTIF($E20:$E22,"SIGNAL")),"-") -> 5 SECTIONS - CLUSTER | J22: - | K22: - | L22: 12.4 | M22: 297.6 | S22: - | Y22: Pole | Z22: Ref 1 (length) | AA22: Ref 2 (design no)
E23: SIGN | F23: S2 | G23: L4 | H23: 18.5 | I23: =IF($E23="SIGNAL",INDEX('MAST ARM HEIGHT'!K13:K17,COUNTIF($E20:$E23,"SIGNAL")),"-") -> - | J23: 24 | K23: 24 | L23: 4 | M23: 74 | S23: 1 | Y23: 1 | Z23: =INDEX(AD5:AD12,MATCH(N4,$AF$5:$AF$12,-1)) -> 2641 | AA23: =INDEX($AE$5:$AE$12,MATCH($P4,$AD$5:$AD$12,-1)) -> 13
D24: - | E24: - | F24: =IF($E24="SIGNAL",INDEX('MAST ARM HEIGHT'!J13:J17,COUNTIF($E20:$E24,"SIGNAL")),"-") -> - | G24: L5 | H24: =IF($E24="SIGNAL",INDEX('MAST ARM HEIGHT'!M13:M17,COUNTIF($E20:$E24,"SIGNAL")),"-") -> - | I24: =IF($E24="SIGNAL",INDEX('MAST ARM HEIGHT'!K13:K17,COUNTIF($E20:$E24,"SIGNAL")),"-") -> - | J24: - | K24: - | L24: - | M24: - | S24: 2 | Y24: 2 | Z24: =INDEX(AD5:AD12,MATCH(N12,$AF$5:$AF$12,-1)) -> 2641 | AA24: =INDEX($AE$5:$AE$12,MATCH($P12,$AD$5:$AD$12,-1)) -> 11
E25: - | F25: =IF($E25="SIGNAL",INDEX('MAST ARM HEIGHT'!J13:J17,COUNTIF($E20:$E25,"SIGNAL")),"-") -> - | G25: L6 | H25: =IF($E25="SIGNAL",INDEX('MAST ARM HEIGHT'!M13:M17,COUNTIF($E20:$E25,"SIGNAL")),"-") -> - | I25: =IF($E25="SIGNAL",INDEX('MAST ARM HEIGHT'!K13:K17,COUNTIF($E20:$E25,"SIGNAL")),"-") -> - | J25: - | K25: - | L25: - | M25: - | S25: 3 | Y25: 3 | Z25: =INDEX(AD5:AD12,MATCH(N20,$AF$5:$AF$12,-1)) -> 1780 | AA25: =INDEX($AE$5:$AE$12,MATCH($P20,$AD$5:$AD$12,-1)) -> 4
E26: - | F26: =IF($E26="SIGNAL",INDEX('MAST ARM HEIGHT'!J13:J17,COUNTIF($E20:$E26,"SIGNAL")),"-") -> - | G26: L7 | H26: =IF($E26="SIGNAL",INDEX('MAST ARM HEIGHT'!M13:M17,COUNTIF($E20:$E26,"SIGNAL")),"-") -> - | I26: =IF($E26="SIGNAL",INDEX('MAST ARM HEIGHT'!K13:K17,COUNTIF($E20:$E26,"SIGNAL")),"-") -> - | J26: - | K26: - | L26: - | M26: - | S26: 4 | Y26: 4 | Z26: =INDEX(AD5:AD12,MATCH(N28,$AF$5:$AF$12,-1)) -> 2641 | AA26: =INDEX($AE$5:$AE$12,MATCH($P28,$AD$5:$AD$12,-1)) -> 13
E27: - | F27: =IF($E27="SIGNAL",INDEX('MAST ARM HEIGHT'!J13:J17,COUNTIF($E20:$E27,"SIGNAL")),"-") -> - | G27: L8 | H27: =IF($E27="SIGNAL",INDEX('MAST ARM HEIGHT'!M13:M17,COUNTIF($E20:$E27,"SIGNAL")),"-") -> - | I27: =IF($E27="SIGNAL",INDEX('MAST ARM HEIGHT'!K13:K17,COUNTIF($E20:$E27,"SIGNAL")),"-") -> - | J27: - | K27: - | L27: - | M27: -
A28: ='MAST ARM HEIGHT'!A18 -> SP-4 | B28: ='MAST ARM HEIGHT'!B18 -> A | C28: 1 | D28: 25 | E28: SIGNAL | F28: =IF($E28="SIGNAL",INDEX('MAST ARM HEIGHT'!J18:J22,COUNTIF($E28,"SIGNAL")),"-") -> 5A | G28: L1 | H28: =IF($E28="SIGNAL",INDEX('MAST ARM HEIGHT'!M18:M22,COUNTIF($E28,"SIGNAL")),"-") -> 68.5 | I28: =IF($E28="SIGNAL",INDEX('MAST ARM HEIGHT'!K18:K22,COUNTIF($E28,"SIGNAL")),"-") -> 3 SECTIONS | J28: - | K28: - | L28: 8.7 | M28: 595.95 | N28: 70 | O28: =IF(N28="-","-",IF(N28>39,"YES","NO")) -> YES | P28: =IF($C28=2,(D28+D32)*3+(SUMIF($M28:$M35,"<>-")),IF($C28=1,$D28*3+(SUMIF($M28:$M35,"<>-")),IF($C28=0,SUMIF($M28:$M35,"<>-"),"-"))) -> 2312.4 | Q28: =IF($P28="-","-",IF($P28<=$Z$26,VLOOKUP($Z$26,$AA$4:$AB$11,2),$AA$26)) -> 14 | S28: -
E29: SIGNAL | F29: =IF($E29="SIGNAL",INDEX('MAST ARM HEIGHT'!J18:J22,COUNTIF($E28:$E29,"SIGNAL")),"-") -> 2A | G29: L2 | H29: =IF($E29="SIGNAL",INDEX('MAST ARM HEIGHT'!M18:M22,COUNTIF($E28:$E29,"SIGNAL")),"-") -> 47.5 | I29: =IF($E29="SIGNAL",INDEX('MAST ARM HEIGHT'!K18:K22,COUNTIF($E28:$E29,"SIGNAL")),"-") -> 3 SECTIONS | J29: - | K29: - | L29: 8.7 | M29: 413.25 | S29: A
E30: SIGNAL | F30: =IF($E30="SIGNAL",INDEX('MAST ARM HEIGHT'!J18:J22,COUNTIF($E28:$E30,"SIGNAL")),"-") -> 2B | G30: L3 | H30: =IF($E30="SIGNAL",INDEX('MAST ARM HEIGHT'!M18:M22,COUNTIF($E28:$E30,"SIGNAL")),"-") -> 35.5 | I30: =IF($E30="SIGNAL",INDEX('MAST ARM HEIGHT'!K18:K22,COUNTIF($E28:$E30,"SIGNAL")),"-") -> 3 SECTIONS | J30: - | K30: - | L30: 8.7 | M30: 308.85 | S30: B
E31: SIGNAL | F31: =IF($E31="SIGNAL",INDEX('MAST ARM HEIGHT'!J18:J22,COUNTIF($E28:$E31,"SIGNAL")),"-") -> 2C | G31: L4 | H31: =IF($E31="SIGNAL",INDEX('MAST ARM HEIGHT'!M18:M22,COUNTIF($E28:$E31,"SIGNAL")),"-") -> 25.5 | I31: =IF($E31="SIGNAL",INDEX('MAST ARM HEIGHT'!K18:K22,COUNTIF($E28:$E31,"SIGNAL")),"-") -> 3 SECTIONS | J31: - | K31: - | L31: 8.7 | M31: 221.85
D32: - | E32: SIGN | F32: S4 | G32: L5 | H32: 62 | I32: =IF($E32="SIGNAL",INDEX('MAST ARM HEIGHT'!K18:K22,COUNTIF($E28:$E32,"SIGNAL")),"-") -> - | J32: 54 | K32: 30 | L32: 11.25 | M32: 697.5
E33: - | F33: =IF($E33="SIGNAL",INDEX('MAST ARM HEIGHT'!J18:J22,COUNTIF($E28:$E33,"SIGNAL")),"-") -> - | G33: L6 | H33: =IF($E33="SIGNAL",INDEX('MAST ARM HEIGHT'!M18:M22,COUNTIF($E28:$E33,"SIGNAL")),"-") -> - | I33: =IF($E33="SIGNAL",INDEX('MAST ARM HEIGHT'!K18:K22,COUNTIF($E28:$E33,"SIGNAL")),"-") -> - | J33: - | K33: - | L33: - | M33: -
E34: - | F34: =IF($E34="SIGNAL",INDEX('MAST ARM HEIGHT'!J18:J22,COUNTIF($E28:$E34,"SIGNAL")),"-") -> - | G34: L7 | H34: =IF($E34="SIGNAL",INDEX('MAST ARM HEIGHT'!M18:M22,COUNTIF($E28:$E34,"SIGNAL")),"-") -> - | I34: =IF($E34="SIGNAL",INDEX('MAST ARM HEIGHT'!K18:K22,COUNTIF($E28:$E34,"SIGNAL")),"-") -> - | J34: - | K34: - | L34: - | M34: -
E35: - | F35: =IF($E35="SIGNAL",INDEX('MAST ARM HEIGHT'!J18:J22,COUNTIF($E28:$E35,"SIGNAL")),"-") -> - | G35: L8 | H35: =IF($E35="SIGNAL",INDEX('MAST ARM HEIGHT'!M18:M22,COUNTIF($E28:$E35,"SIGNAL")),"-") -> - | I35: =IF($E35="SIGNAL",INDEX('MAST ARM HEIGHT'!K18:K22,COUNTIF($E28:$E35,"SIGNAL")),"-") -> - | J35: - | K35: - | L35: - | M35: -

Sheet 2 ARM DESIGN NO.
A1: SUPPORT NO. | B1: ARM | C1: DESIGN NO. | D1: POLE SIZE REQ. | E1: POLE DESIGNATION
A2: - | B2: - | C2: - | D2: =VLOOKUP(SUMIFS($N$3:$N$67,$K$3:$K$67,C2,$L$3:$L$67,C3),$G$14:$H$26,2) -> - | E2: =IF(D2="-","-",VLOOKUP(D2,$P$3:$Q$14,2,FALSE)) -> - | G2: - | H2: - | I2: - | K2: A | L2: B | M2: SIZE | N2: FOR VLOOKUP
B3: - | C3: - | G3: SP-1 | H3: A | I3: 1 | K3: - | L3: - | M3: - | N3: 100 | P3: A | Q3: TC-81.21 DES 3
A4: - | B4: - | C4: - | D4: =VLOOKUP(SUMIFS($N$3:$N$67,$K$3:$K$67,C4,$L$3:$L$67,C5),$G$14:$H$26,2) -> - | E4: =IF(D4="-","-",VLOOKUP(D4,$P$3:$Q$14,2,FALSE)) -> - | G4: SP-2 | H4: B | I4: 2 | K4: 1 | L4: 1 | M4: A | N4: 101 | P4: B | Q4: TC-81.21 DES 4
B5: - | C5: - | G5: SP-3 | H5: C | I5: 3 | K5: 2 | L5: 1 | M5: A | N5: 101 | P5: C | Q5: TC-81.21 DES 11
A6: - | B6: - | C6: - | D6: =VLOOKUP(SUMIFS($N$3:$N$67,$K$3:$K$67,C6,$L$3:$L$67,C7),$G$14:$H$26,2) -> - | E6: =IF(D6="-","-",VLOOKUP(D6,$P$3:$Q$14,2,FALSE)) -> - | G6: SP-4 | H6: D | I6: 4 | K6: 3 | L6: 1 | M6: B | N6: 102 | P6: D | Q6: TC-81.21 DES 12
B7: - | C7: - | G7: SP-5 | I7: 11 | K7: 4 | L7: 1 | M7: C | N7: 103 | P7: E | Q7: TC-12.30 DES 5
A8: - | B8: - | C8: - | D8: =VLOOKUP(SUMIFS($N$3:$N$67,$K$3:$K$67,C8,$L$3:$L$67,C9),$G$14:$H$26,2) -> - | E8: =IF(D8="-","-",VLOOKUP(D8,$P$3:$Q$14,2,FALSE)) -> - | G8: SP-6 | I8: 12 | K8: 11 | L8: 1 | M8: D | N8: 104 | P8: F | Q8: TC-12.30 DES 6
B9: - | C9: - | G9: SP-7 | I9: 13 | K9: 12 | L9: 1 | M9: E | N9: 105 | P9: G | Q9: TC-12.30 DES 7
G10: SP-8 | I10: 14 | K10: 13 | L10: 1 | M10: G | N10: 107 | P10: H | Q10: TC-12.30 DES 8
G11: SP-9 | K11: 14 | L11: 1 | M11: I | N11: 109 | P11: I | Q11: TC-12.30 DES 9
G12: SP-10 | K12: 1 | L12: 2 | M12: A | N12: 101 | P12: J | Q12: TC-12.30 DES 10
K13: 2 | L13: 2 | M13: B | N13: 102 | P13: K | Q13: TC-12.30 DES 11
G14: 100 | H14: - | K14: 3 | L14: 2 | M14: B | N14: 102 | P14: L | Q14: TC-12.30 DES 12
G15: 101 | H15: A | K15: 4 | L15: 2 | M15: C | N15: 103
G16: 102 | H16: B | K16: 11 | L16: 2 | M16: D | N16: 104
G17: 103 | H17: C | K17: 12 | L17: 2 | M17: E | N17: 105
G18: 104 | H18: D | K18: 13 | L18: 2 | M18: G | N18: 107
G19: 105 | H19: E | K19: 14 | L19: 2 | M19: I | N19: 109
G20: 106 | H20: F | K20: 1 | L20: 3 | M20: B | N20: 102
G21: 107 | H21: G | K21: 2 | L21: 3 | M21: B | N21: 102
G22: 108 | H22: H | K22: 3 | L22: 3 | M22: B | N22: 102
G23: 109 | H23: I | K23: 4 | L23: 3 | M23: D | N23: 104
G24: 110 | H24: J | K24: 11 | L24: 3 | M24: D | N24: 104
G25: 111 | H25: K | K25: 12 | L25: 3 | M25: E | N25: 105
G26: 112 | H26: L | K26: 13 | L26: 3 | M26: G | N26: 107
K27: 14 | L27: 3 | M27: I | N27: 109
K28: 1 | L28: 4 | M28: C | N28: 103
K29: 2 | L29: 4 | M29: C | N29: 103
K30: 3 | L30: 4 | M30: D | N30: 104
K31: 4 | L31: 4 | M31: E | N31: 105
K32: 11 | L32: 4 | M32: E | N32: 105
K33: 12 | L33: 4 | M33: F | N33: 106
K34: 13 | L34: 4 | M34: H | N34: 108
K35: 14 | L35: 4 | M35: I | N35: 109
K36: 1 | L36: 11 | M36: D | N36: 104
K37: 2 | L37: 11 | M37: D | N37: 104
K38: 3 | L38: 11 | M38: D | N38: 104
K39: 4 | L39: 11 | M39: E | N39: 105
K40: 11 | L40: 11 | M40: F | N40: 106
K41: 12 | L41: 11 | M41: F | N41: 106
K42: 13 | L42: 11 | M42: H | N42: 108
K43: 14 | L43: 11 | M43: J | N43: 110
K44: 1 | L44: 12 | M44: E | N44: 105
K45: 2 | L45: 12 | M45: E | N45: 105
K46: 3 | L46: 12 | M46: E | N46: 105
K47: 4 | L47: 12 | M47: F | N47: 106
K48: 11 | L48: 12 | M48: F | N48: 106
K49: 12 | L49: 12 | M49: G | N49: 107
K50: 13 | L50: 12 | M50: I | N50: 109
K51: 14 | L51: 12 | M51: J | N51: 110
K52: 1 | L52: 13 | M52: G | N52: 107
K53: 2 | L53: 13 | M53: G | N53: 107
K54: 3 | L54: 13 | M54: G | N54: 107
K55: 4 | L55: 13 | M55: H | N55: 108
K56: 11 | L56: 13 | M56: H | N56: 108
K57: 12 | L57: 13 | M57: I | N57: 109
K58: 13 | L58: 13 | M58: I | N58: 109
K59: 14 | L59: 13 | M59: K | N59: 111
K60: 1 | L60: 14 | M60: I | N60: 109
K61: 2 | L61: 14 | M61: I | N61: 109
K62: 3 | L62: 14 | M62: I | N62: 109
K63: 4 | L63: 14 | M63: I | N63: 109
K64: 11 | L64: 14 | M64: J | N64: 110
K65: 12 | L65: 14 | M65: J | N65: 110
K66: 13 | L66: 14 | M66: K | N66: 111
K67: 14 | L67: 14 | M67: L | N67: 112
